[Event "2nd Cambridge Open 2024"]
[Site "Cambridge"]
[Date "2024.02.22"]
[Round "6.12"]
[White "Ghasi, Ameet K"]
[Black "Asgarova, Turan"]
[Result "1-0"]
[ECO "A05"]
[WhiteElo "2509"]
[BlackElo "1988"]
[Annotator "TA"]
[PlyCount "53"]
[EventDate "2024.02.18"]
[EventType "swiss"]
[EventCountry "ENG"]
[SourceTitle "playchess.com"]
[Source "ChessBase"]
[SourceQuality "1"]
[TimeControl "5400+30"]

{[%evp 12,53,17,18,39,38,59,52,65,56,74,40,231,238,262,207,202,195,243,264,250,261,268,233,244,250,265,259,277,279,297,251,494,370,634,635,630,623,591,524,538,519,987,708]} 1. Nf3 {[%emt 0:01:16]} Nf6 {[%emt 0:00:19]} 2. g3 {[%emt 0:00:05]} g6 {[%emt 0:00:23]} 3. Bg2 {[%emt 0:00:11]} Bg7 {[%emt 0:00:32]} 4. O-O {[%emt 0:00:06]} O-O {[%emt 0:00:16]} 5. d3 {[%emt 0:00:24]} c6 {[%emt 0:02:04]} 6. e4 {[%emt 0:01:44][%cal Be2e4,Be4e5][%mdl 32]} d6 {[%emt 0:02:42]} 7. Nbd2 {[%emt 0:02:44]} b5 {[%emt 0:07:43][%cal Bb7b5,Bb5b4][%mdl 32]} 8. a4 {[%emt 0:11:26]} Bb7 {[%emt 0:07:35]} 9. d4 {[%emt 0:04:29]} Qc7 {[%emt 0:06:19] White is slightly better.} 10. e5 {[%emt 0:03:37]} Nd5 {[%emt 0:06:41]} 11. e6 {[%emt 0:05:47] Hoping for exf7+.} h6 $2 {[%emt 0:09:31] [#]} ({Better is} 11... f5 $14) 12. Nh4 $18 {[%emt 0:15:40]} b4 {[%emt 0:21:50]} 13. exf7+ {[%emt 0:08:04]} Rxf7 {[%emt 0:03:47]} 14. Nxg6 {[%emt 0:10:30]} Bxd4 {[%emt 0:27:48]} (14... Nd7 $142 15. a5 Re8) 15. Ne4 {[%emt 0:01:55][%csl LRd4,LRh6]} Bg7 {[%emt 0:00:00]} 16. Qh5 {[%emt 0:00:16]} Nd7 {[%emt 0:00:00]} 17. Bxh6 {[%emt 0:01:22]} N7f6 {[%emt 0:00:00]} 18. Qh4 $40 {[%emt 0:07:13][%mdl 128] [#] Ng5 would now be deadly. White has strong attack.} Bxh6 {[%emt 0:00:00]} 19. Qxh6 {[%emt 0:01:32]} Rh7 {[%emt 0:00:00]} 20. Qg5 {[%emt 0:09:03]} Rg7 {[%emt 0:00:00]} 21. h4 {[%emt 0:03:20][%cal Bh2h4,Bh4h5][%mdl 32]} c5 $2 {[%emt 0:00:00]} (21... Nh7 {keeps fighting.} 22. Qh6 Bc8) 22. h5 {[%emt 0:00:46]} Kf7 $2 {[%emt 0:00:00]} (22... Nh7) 23. Qf5 {[%emt 0:02:11] White is clearly winning.} Bc8 {[%emt 0:01:20]} 24. Ng5+ {[%emt 0:00:47]} Ke8 {[%emt 0:00:28]} 25. Ne6 {[%emt 0:00:06]} Bxe6 {[%emt 0:00:22]} 26. Qxe6 {[%emt 0:00:02]} Nb6 {[%emt 0:01:38]} (26... Qc8 $142 27. Bxd5 Qxe6 28. Bxe6 Nxh5) 27. a5 {[%emt 0:00:43] White took control after the opening.   Weighted Error Value: White=0.28 (precise) /Black=0.68.  Loses game:     	---       	Black=1      Mistake:       	---       	Black=4      Inaccurate:     	White=1     	---        OK:         	White=7     	Black=6      Best:        	White=1     	Black=2} 1-0

[Event "2nd Cambridge Open 2024"]
[Site "Cambridge"]
[Date "2024.02.22"]
[Round "6.13"]
[White "Hagesather, Nina"]
[Black "York-Weaving, Richard"]
[Result "0-1"]
[ECO "A36"]
[WhiteElo "1973"]
[BlackElo "2343"]
[Annotator "TA"]
[PlyCount "156"]
[EventDate "2024.02.18"]
[EventType "swiss"]
[EventCountry "ENG"]
[SourceTitle "playchess.com"]
[Source "ChessBase"]
[SourceQuality "1"]
[TimeControl "5400+30"]

{[%evp 43,156,17,23,25,32,14,15,0,0,0,0,0,0,0,0,0,0,-3,0,0,0,-196,-194,-187,-166,-182,-130,-189,-131,-202,-154,-272,-197,-604,-579,-1415,-812,-1012,-472,-470,-206,-207,-207,-477,-477,-681,0,-298,-297,-279,-179,-29936,-6283,-29989,-446,-429,-439,-781,-219,-234,-234,-220,-220,-228,-226,-279,-279,-279,-279,-279,-272,-272,0,-243,0,-272,-247,-332,-332,-332,-290,-371,-378,-388,-367,-326,-205,-559,-559,-556,-323,-1979,-1772,-1153,-1113,-1763,-1788,-1630,-1645,-1525,-1480,-2185,-1862,-1496,-1162,-1436,-1402,-1164,-1039,-8533,-6079,-29981,-29982,-29981,-29981]} 1. e4 {[%emt 0:00:04] Melao,Hindemburg} c5 {[%emt 0:03:08]} 2. c4 {[%emt 0:00:51]} Nc6 {[%emt 0:00:24]} 3. Nc3 {[%emt 0:00:17]} g6 {[%emt 0:00:50]} 4. g3 {[%emt 0:00:23]} Bg7 {[%emt 0:00:16]} 5. Bg2 {[%emt 0:00:46]} e6 {[%emt 0:01:56]} 6. Nge2 {[%emt 0:01:30]} Nge7 {[%emt 0:00:16]} 7. O-O {[%emt 0:00:33]} O-O {[%emt 0:00:17]} 8. d3 {[%emt 0:00:55]} b6 {[%emt 0:02:14]} 9. a3 {[%emt 0:01:11]} Bb7 {[%emt 0:03:23]} 10. Rb1 {[%emt 0:02:31]} d6 {[%emt 0:09:03]} 11. b4 {[%emt 0:04:59]} Qd7 {[%emt 0:00:26]} 12. b5 {[%emt 0:03:52] A36: Englische Eröffnung (Botwinnik-Variante).} Nd4 {[%emt 0:01:41]} 13. Nxd4 {[%emt 0:05:52]} cxd4 {[%emt 0:00:10]} 14. Ne2 {[%emt 0:05:38]} d5 {[%emt 0:06:20]} 15. cxd5 {[%emt 0:02:21]} exd5 {[%emt 0:00:19]} 16. e5 {[%emt 0:03:38]} Bxe5 {[%emt 0:00:15]} 17. Bb2 {[%emt 0:07:54]} Qd6 {[%emt 0:11:16]} 18. Nxd4 {[%emt 0:03:51]} Qf6 $146 {[%emt 0:04:06]} ({Predecessor:} 18... a6 19. Re1 Bg7 20. a4 Rfe8 21. Qd2 axb5 22. Bh3 f5 23. Re6 Qd7 24. Rbe1 Rac8 25. Qg5 Nc6 26. Bxf5 Bxd4 27. Bxd4 Nxd4 28. Rxg6+ hxg6 29. Qxg6+ Kf8 30. Qf6+ {0-1 Sega,C (2280)-Limp,E (2434) Itau Mercosul Cup 3rd 1999 (6)}) 19. Qa4 {[%emt 0:07:53]} Nf5 {[%emt 0:02:24]} 20. Nxf5 {[%emt 0:00:08]} Bxb2 {[%emt 0:03:01]} 21. Nd6 {[%emt 0:07:02]} Qxd6 {[%emt 0:15:50]} 22. Rxb2 {[%emt 0:00:04]} Rfc8 {[%emt 0:01:24]} 23. Re1 {[%emt 0:05:24]} Kg7 {[%emt 0:05:55]} 24. Rbe2 {[%emt 0:03:29]} Rc7 $1 {[%emt 0:00:41]} 25. Qd4+ {[%emt 0:03:55]} Qf6 {[%emt 0:00:50]} 26. Qb4 {[%emt 0:00:54]} Rd8 {[%emt 0:05:20]} 27. Re8 {[%emt 0:06:15]} Rd6 {[%emt 0:01:20]} 28. R1e5 {[%emt 0:05:53]} Rc1+ {[%emt 0:03:22]} 29. Re1 {[%emt 0:00:34]} Rc2 {[%emt 0:00:58]} 30. R1e2 {[%emt 0:01:57]} Rc7 {[%emt 0:03:46]} 31. R2e5 {[%emt 0:00:16]} Bc8 {[%emt 0:05:23]} 32. d4 $2 {[%emt 0:09:17]} (32. Rxd5 Rc1+ 33. Re1 Qa1 $17) (32. Bxd5 $11 {und Weiss muss sich keine Sorgen machen.} Rc1+ 33. Re1 (33. Kg2 $2 Rc5 $19) 33... Rxe1+ 34. Qxe1 Rxd5 35. Rxc8) 32... Bd7 $19 {[%emt 0:03:35]} 33. R8e7 {[%emt 0:01:30] [#]} Rc1+ $1 {[%emt 0:00:36]} 34. Re1 {[%emt 0:00:11]} Rc4 {[%emt 0:00:37]} (34... Rc2 $19 35. R7e2 Rc4) 35. Qb3 {[%emt 0:02:02]} (35. Qb2 $17) 35... Rxd4 {[%emt 0:01:34]} (35... Qxd4 $19 36. h4 Rc3) 36. R7e3 {[%emt 0:01:42]} (36. R7e5 $17) 36... Bf5 {[%emt 0:01:19]} 37. Re7 {[%emt 0:01:39]} (37. Re5 $17 {kämpft weiter.}) 37... Re6 {[%emt 0:01:19]} 38. R1xe6 $2 {[%emt 0:00:35]} (38. R7xe6 Bxe6 39. Rd1) 38... Bxe6 $19 {[%emt 0:00:10]} 39. Rxa7 {[%emt 0:00:13]} Rc4 {[%emt 0:01:59]} 40. Bf1 {[%emt 0:01:08]} Rc1 {[%emt 0:00:50]} (40... Qa1 $142 41. h4 Rc1) 41. Qe3 $19 {[%emt 0:00:16]} Ra1 {[%emt 0:01:42]} (41... Rd1 $142 {( -> ...Bh3)} 42. Qe2 (42. Qxb6 Bh3) 42... Rb1) 42. Kg2 {[%emt 0:00:38]} (42. Qxb6 $2 Rxf1+ 43. Kxf1 Bh3+ 44. Ke1 Qxb6 $19) 42... d4 {[%emt 0:00:13]} 43. Qe4 $2 {[%emt 0:00:32]} (43. Qf4) 43... Bf5 $19 {[%emt 0:00:40]} 44. Qd5 {[%emt 0:00:14]} (44. Qe7 $142 Qxe7 45. Rxe7) 44... Be6 {[%emt 0:00:13]} (44... Re1 $142 45. Qb3 Be4+ 46. f3 Re3 47. Qxf7+ Qxf7 48. Rxf7+ Kxf7 49. Bc4+ Kf6 50. fxe4 Ke5 (50... Rxe4 $2 51. Kf2 $19) (50... Rxa3 $2 51. Bg8 $19)) 45. Qe4 $1 $19 {[%emt 0:00:29]} Ra2 {[%emt 0:00:30]} 46. Be2 {[%emt 0:01:05]} Bf5 {[%emt 0:00:55]} 47. Qf3 $2 {[%emt 0:00:37]} (47. Qe7 $19) 47... d3 {[%emt 0:00:38]} 48. Bd1 {[%emt 0:00:44]} Qe5 {[%emt 0:00:30]} (48... Be4 $142 49. Rxf7+ Qxf7 50. h4 Bxf3+ 51. Bxf3 h5 (51... Rxa3 {ist ein Selbstmatt.} 52. g4 Ra1 53. h5) 52. g4 hxg4 (52... Rxa3 53. g5 Qf4 54. Bd1 Ra2 55. Bf3 Qxh4 56. Be2 dxe2 57. Kf3 e1=Q 58. Kg2 Rxf2#) 53. Be2 dxe2 (53... Rxe2 54. Kg3 Qxf2+ 55. Kxg4 Qg2+ 56. Kf4 Re4#) 54. Kg3 Qf3+ (54... e1=R 55. Kxg4 Rg1+ 56. Kh3 Qf3+ 57. Kh2 Rh1#) 55. Kh2 Qxf2+ 56. Kh1 e1=Q#) 49. Ra4 $19 {[%emt 0:00:26]} Re2 {[%emt 0:00:32]} (49... Qxb5 $2 50. Qf4 Qd5+ 51. Bf3 $19) 50. Rf4 {[%emt 0:00:41] [#]} ({Nur nicht} 50. Bxe2 $2 dxe2) (50. g4 $142 Be4 51. Rxe4 Rxe4 52. Qxd3) 50... Qe6 $2 {[%emt 0:00:31]} (50... Re1 $1 51. Rh4 (51. Bb3 Be4) 51... d2 (51... Qxb5 $2 52. Rf4 $19) (51... Be4 $2 52. Rxe4 Qxe4 53. Qxe4 $19)) 51. Rxf5 $19 {[%emt 0:00:31]} (51. Bxe2 Bh3+ (51... dxe2 $2 52. Qc3+ f6 53. Rxf5 $19) 52. Kg1 dxe2) 51... gxf5 {[%emt 0:00:22]} 52. Qxd3 {[%emt 0:00:01]} Qe4+ {[%emt 0:00:34]} 53. Qxe4 {[%emt 0:00:23]} Rxe4 {[%emt 0:00:02]} 54. Bc2 {[%emt 0:00:41]} Re5 {[%emt 0:00:29]} 55. a4 {[%emt 0:00:01]} Rc5 {[%emt 0:00:12]} 56. Bd3 {[%emt 0:00:28]} Rd5 {[%emt 0:00:08]} 57. Bc2 {[%emt 0:00:21]} Rc5 {[%emt 0:00:01]} 58. Bd3 {[%emt 0:00:03]} Rd5 {[%emt 0:01:02]} 59. Bc2 {[%emt 0:00:06]} Kf6 {[%emt 0:00:45]} 60. h4 {[%emt 0:01:33]} h6 {[%emt 0:00:37]} 61. Kf3 {[%emt 0:00:10]} Rd2 {[%emt 0:00:32]} 62. Bb1 {[%emt 0:00:38]} Rb2 {[%emt 0:00:32]} 63. Bd3 {[%emt 0:00:07]} Rb3 {[%emt 0:00:57]} 64. Ke2 {[%emt 0:00:22]} f4 {[%emt 0:00:20]} 65. g4 $2 {[%emt 0:01:31]} (65. gxf4 {nur so!} Rb4 66. Kf3) 65... Ra3 $19 {[%emt 0:00:43]} 66. Be4 {[%emt 0:00:51]} Rxa4 {[%emt 0:00:22]} 67. f3 $2 {[%emt 0:00:25]} (67. Kf3) 67... Ra2+ $19 {[%emt 0:00:37]} 68. Kd3 {[%emt 0:00:08]} Rh2 {[%emt 0:00:07]} 69. h5 {[%emt 0:00:11]} Ke5 {[%emt 0:00:08]} 70. Bf5 {[%emt 0:00:51]} Rf2 {[%emt 0:00:59]} 71. Be4 {[%emt 0:00:05]} Rb2 {[%emt 0:00:27]} 72. Kc4 {[%emt 0:00:16]} Rd2 {[%emt 0:00:42]} 73. Kc3 {[%emt 0:00:17]} Rd4 {[%emt 0:00:18]} 74. Bf5 {[%emt 0:00:07]} Rd5 {[%emt 0:00:27]} 75. Kc4 {[%emt 0:00:23]} Rc5+ {[%emt 0:00:03]} 76. Kb4 {[%emt 0:00:05]} Kd4 {[%emt 0:00:15]} 77. Bd7 {[%emt 0:00:22]} Rc4+ {[%emt 0:00:36]} 78. Kb3 {[%emt 0:00:11]} Rc3+ {[%emt 0:00:08]} 0-1

[Event "2nd Cambridge Open 2024"]
[Site "Cambridge"]
[Date "2024.02.22"]
[Round "6.14"]
[White "Golubovic, Boris"]
[Black "Jermy, Jaden"]
[Result "1/2-1/2"]
[ECO "E05"]
[WhiteElo "2342"]
[BlackElo "1968"]
[Annotator "TA"]
[PlyCount "74"]
[EventDate "2024.02.18"]
[EventType "swiss"]
[EventCountry "ENG"]
[SourceTitle "playchess.com"]
[Source "ChessBase"]
[SourceQuality "1"]
[TimeControl "5400+30"]

{[%evp 13,74,7,12,0,25,21,16,20,12,17,14,5,2,15,17,0,49,50,65,78,72,83,76,38,73,67,58,66,277,106,107,0,279,0,107,118,115,114,114,118,117,116,116,112,111,114,124,114,113,104,119,108,119,0,0,0,0,0,0,0,0,0,0]} 1. Nf3 {[%emt 0:00:12]} Nf6 {[%emt 0:00:32]} 2. c4 {[%emt 0:00:21]} e6 {[%emt 0:01:12]} 3. g3 {[%emt 0:00:35]} d5 {[%emt 0:00:20]} 4. Bg2 {[%emt 0:00:13]} Be7 {[%emt 0:00:21]} 5. O-O {[%emt 0:00:52]} O-O {[%emt 0:00:06]} 6. d4 {[%emt 0:01:00]} dxc4 {[%emt 0:04:15]} 7. Qc2 {[%emt 0:01:04]} b5 {[%emt 0:03:16]} 8. a4 {[%emt 0:03:11]} Bb7 {[%emt 0:05:29]} 9. axb5 {[%emt 0:05:14]} a6 {[%emt 0:00:01]} 10. bxa6 {[%emt 0:06:19]} (10. Qxc4 $2 axb5 11. Qxb5 Bc6 (11... Rxa1 $2 12. Qxb7 Rxb1 13. Qa8 $19) 12. Rxa8 Bxb5 $19) 10... Nxa6 {[%emt 0:01:14][%cal Bb8a6,Ba6b4,Bb4a2][%mdl 32]} 11. Qxc4 {[%emt 0:05:10]} Bd5 {[%emt 0:06:47]} 12. Qd3 {[%emt 0:03:10]} Nb4 {[%emt 0:01:36][%csl LRa1,LRd3]} 13. Rxa8 {[%emt 0:00:13]} Qxa8 {[%emt 0:00:10]} 14. Qd1 {[%emt 0:00:23]} Ne4 {[%emt 0:09:08]} (14... c5 $11 {is more appropriate.}) 15. Nc3 $14 {[%emt 0:07:00]} Nxc3 {[%emt 0:00:14]} 16. bxc3 {[%emt 0:00:08]} Na2 {[%emt 0:00:37]} 17. Bd2 {[%emt 0:05:19]} Rb8 {[%emt 0:04:13]} 18. Ne1 {[%emt 0:21:43]} Qa3 {[%emt 0:17:16]} 19. Bxd5 {[%emt 0:04:52]} exd5 {[%emt 0:00:02]} 20. Qc2 {[%emt 0:06:35]} Rb3 $2 {[%emt 0:03:09] [#]} (20... Rb2 $1 $14 21. Qd3 Qd6) 21. Qf5 $2 {[%emt 0:07:17]} (21. Nd3 $1 $18 {And now Ra1 would win.} Nxc3 22. Nc1 Nxe2+ 23. Nxe2) 21... Qa8 {[%emt 0:01:58]} 22. Qc2 $2 {[%emt 0:08:17]} (22. Qd3 $16) 22... Qa3 $18 {[%emt 0:00:23][%cal Ra2c3] [#]} 23. Qf5 $2 {[%emt 0:01:00]} (23. Nd3 $1 $18 {Ra1 would now be deadly.} Nxc3 24. Nc1) 23... Qa8 $1 $16 {[%emt 0:00:04]} 24. Nc2 {[%emt 0:04:55]} Nxc3 {[%emt 0:03:12]} 25. Qd3 {[%emt 0:01:46]} Ne4 {[%emt 0:04:30]} 26. Qxb3 {[%emt 0:00:15]} Nxd2 {[%emt 0:00:02]} 27. Qe3 {[%emt 0:00:56][%csl LRd2,LRe7]} Nxf1 {[%emt 0:00:09]} 28. Qxe7 {[%emt 0:00:36][%mdl 4096] Endgame. KQN-KQN} (28. Kxf1 $6 Bf8 $11) 28... Nd2 {[%emt 0:00:06]} 29. Qxc7 {[%emt 0:00:14]} h6 {[%emt 0:00:53]} 30. Qc3 {[%emt 0:03:18]} Ne4 {[%emt 0:00:05]} 31. Qd3 {[%emt 0:00:26]} Qa2 {[%emt 0:01:23]} 32. Ne3 {[%emt 0:00:58]} Qa1+ {[%emt 0:00:15]} 33. Kg2 {[%emt 0:00:02]} (33. Qd1 $16 Qa5 34. Qb1) 33... Qe1 $11 {[%emt 0:00:19] The position is equal.} 34. Nd1 {[%emt 0:00:50]} (34. Nxd5 {leads to mate.} Qxf2+ (34... Nxf2 35. Qf3 $16) 35. Kh3 Qf1+ (35... Qf5+ $2 36. Kg2 $19) 36. Kg4 h5+ (36... Nf2+ $2 37. Kf4 $19) 37. Kh4 g5+ 38. Kxh5 Qh3#) 34... Nd2 {[%emt 0:00:25]} 35. Ne3 {[%emt 0:00:19][%cal Of2f3] Wards off Qf1+. Threatens to win with f3!} Ne4 {[%emt 0:00:07]} 36. Nd1 {[%emt 0:01:29]} (36. Nxd5 {is a self mate.} Qxf2+ (36... Nxf2 37. Qf5 $14) 37. Kh3 Qf1+ (37... Qf5+ $2 38. Kg2 $19) 38. Kg4 h5+ (38... Nf2+ $2 39. Kf4 $19) 39. Kh4 g5+ 40. Kxh5 Qh3#) 36... Nd2 {[%emt 0:00:02]} 37. Ne3 {[%emt 0:01:35][%cal Of2f3] Inhibits Qf1+.} Ne4 {[%emt 0:00:05] Weighted Error Value: White=0.33/Black=0.17 (very precise) .  Loses game:     	---       	Black=1      Missed win:     	White=2     	---        Mistake:       	White=2     	Black=1      Inaccurate:     	White=1     	Black=1      OK:         	White=9     	Black=14     Best:        	White=3     	Black=4      Strong:       	---       	Black=1} 1/2-1/2

[Event "2nd Cambridge Open 2024"]
[Site "Cambridge"]
[Date "2024.02.22"]
[Round "6.15"]
[White "Redman, David J"]
[Black "Gourlay, Iain"]
[Result "0-1"]
[ECO "D58"]
[WhiteElo "1971"]
[BlackElo "2301"]
[Annotator "TA"]
[PlyCount "56"]
[EventDate "2024.02.18"]
[EventType "swiss"]
[EventCountry "ENG"]
[SourceTitle "playchess.com"]
[Source "ChessBase"]
[SourceQuality "1"]
[TimeControl "5400+30"]

{[%evp 14,56,17,8,5,-18,-22,-13,-22,-9,-8,-39,0,-11,0,0,0,0,0,-112,-112,-137,-147,-154,-156,-518,-468,-510,-512,-551,-533,-539,-554,-532,-527,-553,-539,-851,-818,-776,-782,-760,-729,-692,-499]} 1. Nf3 {[%emt 0:00:03]} d5 {[%emt 0:05:08]} 2. c4 {[%emt 0:00:07]} e6 {[%emt 0:00:50]} 3. d4 {[%emt 0:00:55]} Nf6 {[%emt 0:00:22]} 4. Nc3 {[%emt 0:00:13]} Be7 {[%emt 0:00:33]} 5. Bg5 {[%emt 0:00:21]} h6 {[%emt 0:00:43]} 6. Bh4 {[%emt 0:04:59]} O-O {[%emt 0:00:23]} 7. e3 {[%emt 0:00:26]} b6 {[%emt 0:00:24]} 8. Be2 {[%emt 0:11:03]} dxc4 {[%emt 0:01:12]} 9. Bxf6 {[%emt 0:01:34]} Bxf6 {[%emt 0:00:24]} 10. Bxc4 {[%emt 0:00:07]} Bb7 {[%emt 0:01:15] Die Stellung ist ausgeglichen.} 11. O-O {[%emt 0:00:22]} Nd7 {[%emt 0:06:33]} 12. e4 {[%emt 0:07:24]} Re8 {[%emt 0:22:44]} 13. Qb3 {[%emt 0:06:42]} c5 {[%emt 0:10:03]} 14. d5 {[%emt 0:09:46]} exd5 {[%emt 0:04:09]} 15. Nxd5 {[%emt 0:01:13]} Rxe4 {[%emt 0:02:38]} 16. Rad1 {[%emt 0:00:44]} (16. Rae1 $11 Rxe1 17. Rxe1) 16... Ne5 $17 {[%emt 0:05:47]} 17. Nc3 {[%emt 0:23:53]} Nxf3+ {[%emt 0:01:33]} 18. gxf3 {[%emt 0:01:44]} Rd4 {[%emt 0:00:11]} 19. Nb5 $2 {[%emt 0:00:06] [#] Verliert die Partie.} (19. Bxf7+ $17 {ist eine bessere Chance.} Kh8 20. Ne2) 19... Be5 $1 $19 {[%emt 0:05:00] Das Läuferpaar ist gut. Schwarz steht klar auf Gewinn.} 20. Bxf7+ {[%emt 0:05:17]} Kh8 {[%emt 0:01:30] ( -> ...Qg5+)} 21. Rxd4 {[%emt 0:02:39]} cxd4 {[%emt 0:00:20]} 22. Re1 {[%emt 0:07:18][%cal Og1f1]} Qg5+ {[%emt 0:01:04]} 23. Kf1 {[%emt 0:00:18]} Rd8 {[%emt 0:05:20] [#] Wehrt Bd5 ab. Und ...d3 würde nun gewinnen.} 24. Qd3 {[%emt 0:06:17]} Rf8 {[%emt 0:03:09]} 25. Nxd4 {[%emt 0:04:59]} Bxd4 {[%emt 0:03:47]} 26. Qxd4 {[%emt 0:00:32]} Rxf7 {[%emt 0:00:27]} 27. Re8+ {[%emt 0:03:01]} Kh7 {[%emt 0:00:14]} 28. Qd3+ {[%emt 0:00:04]} Qf5 {[%emt 0:00:34] Gewichteter Fehlerwert: Weiß=0.63/Schwarz=0.03 (makellos) .  Verlustzug:     	Weiß=1     	---        Fehler:       	Weiß=1     	---        Ungenau:       	Weiß=2     	Schwarz=1     OK:         	Weiß=4     	Schwarz=7     Bester:       	Weiß=1     	Schwarz=4} 0-1

[Event "2nd Cambridge Open 2024"]
[Site "Cambridge"]
[Date "2024.02.22"]
[Round "6.16"]
[White "Shafi, Declan"]
[Black "Myall, Ivan J"]
[Result "1-0"]
[ECO "A07"]
[WhiteElo "2219"]
[BlackElo "1951"]
[Annotator "RC"]
[PlyCount "75"]
[EventDate "2024.02.18"]
[EventType "swiss"]
[EventCountry "ENG"]
[SourceTitle "playchess.com"]
[Source "ChessBase"]
[SourceQuality "1"]
[TimeControl "5400+30"]

1. Nf3 {[%emt 0:00:04]} d5 {[%emt 0:00:07]} 2. g3 {[%emt 0:00:08]} Nf6 {[%emt 0:00:40]} 3. Bg2 {[%emt 0:00:07]} c6 {[%emt 0:00:13]} 4. O-O {[%emt 0:00:30]} Bf5 {[%emt 0:00:25]} 5. d3 {[%emt 0:00:20]} Nbd7 {[%emt 0:00:21]} 6. Nh4 {[%emt 0:01:28]} Bg6 {[%emt 0:01:28]} 7. c4 {[%emt 0:07:11]} e6 {[%emt 0:00:06]} 8. cxd5 {[%emt 0:05:06]} Nxd5 {[%emt 0:04:27]} 9. e4 {[%emt 0:03:57]} N5b6 {[%emt 0:02:01]} 10. d4 {[%emt 0:03:14]} Be7 {[%emt 0:00:24]} 11. Nxg6 {[%emt 0:00:10]} hxg6 {[%emt 0:00:06]} 12. Nc3 {[%emt 0:00:13]} Nf6 {[%emt 0:11:40]} 13. a4 {[%emt 0:02:37]} a5 {[%emt 0:05:09]} 14. h3 {[%emt 0:02:46]} Bb4 {[%emt 0:02:45]} 15. Na2 {[%emt 0:00:51]} Qe7 {[%emt 0:06:00]} 16. Qb3 {[%emt 0:02:00]} Rd8 {[%emt 0:02:40]} 17. Be3 {[%emt 0:02:14]} Nbd7 {[%emt 0:04:32]} 18. Nxb4 {[%emt 0:02:31]} Qxb4 {[%emt 0:00:38]} 19. Qxb4 {[%emt 0:00:14]} axb4 {[%emt 0:00:03]} 20. f4 {[%emt 0:01:13]} Nb8 {[%emt 0:00:37]} 21. Rac1 {[%emt 0:04:37]} O-O {[%emt 0:04:17]} 22. Rfd1 {[%emt 0:02:43]} Na6 {[%emt 0:01:00]} 23. g4 {[%emt 0:01:07]} Rfe8 {[%emt 0:03:23]} 24. Kf2 {[%emt 0:00:40]} Re7 {[%emt 0:10:54]} 25. g5 {[%emt 0:00:59]} Ne8 {[%emt 0:01:09]} 26. d5 {[%emt 0:01:46]} cxd5 {[%emt 0:05:44]} 27. exd5 {[%emt 0:00:18]} e5 {[%emt 0:00:49]} 28. fxe5 {[%emt 0:02:05]} Rxe5 {[%emt 0:00:47]} 29. Bf4 {[%emt 0:00:45]} Rf5 {[%emt 0:00:45]} 30. Kg3 {[%emt 0:00:44]} Nd6 {[%emt 0:00:45]} 31. h4 {[%emt 0:02:00]} f6 {[%emt 0:00:47]} 32. Re1 {[%emt 0:03:33]} fxg5 {[%emt 0:00:45]} 33. hxg5 {[%emt 0:00:23]} Rff8 {[%emt 0:01:28]} 34. Bxd6 {[%emt 0:02:02]} Rxd6 {[%emt 0:00:07]} 35. Bh3 {[%emt 0:00:12]} Rf5 {[%emt 0:02:27]} 36. Bxf5 {[%emt 0:00:42]} gxf5 {[%emt 0:00:04]} 37. Re5 {[%emt 0:00:14]} g6 {[%emt 0:00:10]} 38. Re7 {[%emt 0:00:16]} 1-0